bitfinex/quotes_SOLUSD_20260105
["timestamp","ask_amount","ask_price","bid_price","bid_amount"]
[1767630303701,28.06129686,135.26,135.21,0.7074925]
[1767630303923,46.54421864,135.26,135.21,0.7074925]
[1767630304127,52.50362845,135.26,135.21,0.7074925]
[1767630304313,46.54421864,135.26,135.21,0.7074925]
[1767630304809,52.50362845,135.26,135.21,0.7074925]
[1767630305007,46.54421864,135.26,135.21,0.7074925]
[1767630305223,27.39316871,135.26,135.22,0.7074925]
[1767630305726,28.06129686,135.26,135.22,0.7074925]
[1767630306130,0.66812815,135.25,135.2,0.7074925]
[1767630306429,8.06237186,135.25,135.2,0.7074925]
[1767630307310,0.66812815,135.24,135.19,13.48]
[1767630307513,0.66812815,135.24,135.18,8.10478706]
[1767630307514,6.62753796,135.22,135.18,0.7074925]
[1767630307719,6.62753796,135.22,135.16,0.7074925]
[1767630307908,0.66812815,135.22,135.17,0.7074925]
[1767630308305,18.48428835,135.25,135.18,0.7074925]
[1767630308630,0.66812815,135.25,135.19,0.7074925]
[1767630309213,79.73512373,135.26,135.19,0.7074925]
[1767630310334,79.73512373,135.26,135.2,8.1039422]
[1767630310536,0.66812815,135.25,135.2,8.1039422]
[1767630310931,0.66812815,135.25,135.2,0.7074925]
[1767630312023,27.3932918,135.26,135.2,0.7074925]
[1767630312220,28.06141995,135.26,135.2,0.7074925]
[1767630312531,28.06141995,135.26,135.2,8.10355761]
[1767630312735,0.66812815,135.25,135.2,8.10355761]
[1767630313821,8.06185803,135.25,135.2,8.10355761]
[1767630314538,0.66812815,135.25,135.21,0.7074925]
[1767630314928,20.0,135.26,135.21,0.7074925]
[1767630315939,20.0,135.26,135.23,0.7074925]
[1767630316441,18.97926655,135.26,135.23,0.7074925]
[1767630317333,0.1,135.99,135.22,7.39535571]
[1767630317334,5.95940981,135.31,135.22,25.883745]
[1767630317532,5.95940981,135.29,135.23,13.48]
[1767630317725,0.66812815,135.28,135.22,7.39535571]
[1767630317956,0.66812815,135.27,135.22,7.39535571]
[1767630318455,0.66812815,135.27,135.22,7.39520882]
[1767630320852,7.39186896,135.29,135.22,7.39520882]
[1767630320853,0.66812815,135.29,135.22,25.88359811]
[1767630322052,0.66812815,135.28,135.22,25.88359811]
[1767630322545,0.66812815,135.3,135.22,25.88359811]
[1767630323128,0.66812815,135.3,135.22,34.23373648]
[1767630323554,0.66812815,135.32,135.23,5.51529]
[1767630323863,0.66812815,135.32,135.24,13.48]
[1767630324031,0.66812815,135.32,135.25,25.87800369]
[1767630324734,0.66812815,135.32,135.26,13.48]
[1767630324933,0.66812815,135.31,135.25,7.39371534]
[1767630325160,0.66812815,135.31,135.25,20.87371534]
[1767630326052,0.66812815,135.3,135.25,20.87371534]
[1767630327661,0.66812815,135.3,135.25,39.35800369]
[1767630328157,0.66812815,135.3,135.23,18.48660557]
[1767630328455,0.66812815,135.3,135.25,7.39371212]
[1767630329471,0.66812815,135.32,135.25,25.87800047]
[1767630329668,0.66812815,135.32,135.25,34.22813884]
[1767630334672,0.661063,135.31,135.25,7.39371212]
[1767630334838,7.39023254,135.32,135.23,18.48626387]
[1767630334839,0.661063,135.3,135.24,20.87404328]
[1767630336551,0.661063,135.3,135.25,7.39364411]
[1767630336748,0.661063,135.29,135.25,7.39364411]
[1767630336943,0.661063,135.29,135.21,18.48891461]
[1767630337154,0.661063,135.28,135.21,18.48891461]
[1767630337691,0.661063,135.28,135.22,7.39506526]
[1767630337840,0.661063,135.28,135.21,18.48891461]
[1767630338863,0.661063,135.27,135.21,18.48891461]
[1767630339537,0.661063,135.27,135.21,7.39590266]
[1767630340967,0.661063,135.27,135.21,25.88565933]
[1767630341670,18.47497933,135.32,135.22,0.661063]
[1767630341851,18.47497933,135.32,135.24,0.661063]
[1767630342253,25.86486995,135.32,135.24,0.661063]
[1767630342946,25.86486995,135.32,135.25,7.39371534]
[1767630343744,0.661063,135.31,135.25,7.39371534]
[1767630345472,0.661063,135.31,135.26,0.661063]
[1767630345858,0.661063,135.31,135.25,26.53906669]
[1767630346059,0.661063,135.31,135.26,0.661063]
[1767630346565,0.661063,135.3,135.25,25.87800369]
[1767630346871,0.661063,135.3,135.26,0.661063]
[1767630347052,7.38959189,135.33,135.27,8.11741793]
[1767630347671,18.6713826,135.35,135.27,8.11741793]
[1767630347672,7.58831406,135.35,135.28,0.72479577]
[1767630348871,7.58831406,135.35,135.29,7.3915293]
[1767630349071,0.661063,135.34,135.29,7.3915293]
[1767630350558,0.661063,135.34,135.26,0.72479577]
[1767630350752,0.661063,135.34,135.27,0.72479577]
[1767630350976,0.661063,135.32,135.27,0.72479577]
[1767630351678,0.661063,135.32,135.27,8.11740934]
[1767630352252,0.661063,135.32,135.27,0.72479577]
[1767630352466,0.661063,135.32,135.26,8.1175309]
[1767630352872,0.69104609,135.3,135.24,8.10439768]
[1767630353072,0.69104609,135.3,135.25,0.71013563]
[1767630353267,0.69104609,135.3,135.24,7.39426205]
[1767630353473,0.69104609,135.3,135.25,0.71013563]
[1767630355567,8.08257539,135.29,135.24,7.39426205]
[1767630355783,0.69104609,135.28,135.24,8.10439768]
[1767630356382,0.69104609,135.28,135.23,20.87465977]
[1767630356568,0.69104609,135.28,135.23,21.5847954]
[1767630359274,0.69104609,135.28,135.24,0.71013563]
[1767630359683,8.08214258,135.3,135.25,8.10385097]
[1767630359876,0.69104609,135.29,135.25,8.10385097]
[1767630361187,0.67628907,135.3,135.26,0.69744437]
[1767630362086,0.67628907,135.3,135.26,8.0905466]
[1767630363584,0.67628907,135.32,135.27,0.69744437]
[1767630363768,0.67628907,135.32,135.28,8.08952006]
[1767630365004,8.06523656,135.34,135.29,0.69744437]
[1767630365211,0.67628907,135.33,135.29,0.69744437]
[1767630365792,0.67628907,135.33,135.29,8.08886928]
[1767630366812,0.67628907,135.33,135.27,18.48105026]
[1767630366813,0.67628907,135.32,135.27,0.69744437]
[1767630368090,0.67628907,135.32,135.27,8.08980273]
[1767630368603,0.67628907,135.32,135.28,0.69744437]
[1767630368800,66.02999285,135.35,135.28,0.69744437]
[1767630369110,52.54999285,135.35,135.28,0.69744437]
[1767630370183,0.2,135.35,135.3,0.69744437]
[1767630370784,0.67628907,135.37,135.34,0.69744437]
[1767630371195,0.67628907,135.37,135.3,0.69744437]
[1767630372204,0.67628907,135.37,135.32,0.69744437]
[1767630373318,0.67628907,135.36,135.31,26.56397307]
[1767630373820,0.67628907,135.36,135.32,0.69744437]
[1767630374217,0.67628907,135.36,135.32,8.08688631]
[1767630377393,0.67628907,135.35,135.3,0.69744437]
[1767630379713,0.67628907,135.35,135.32,0.69744437]
[1767630379921,0.67628907,135.37,135.32,0.69744437]
[1767630380123,52.54999285,135.38,135.32,0.69744437]
[1767630380496,0.67628907,135.37,135.32,0.69744437]
[1767630381911,0.67628907,135.37,135.33,7.38934456]
[1767630382414,0.67628907,135.36,135.32,7.3897726]
[1767630382633,0.67628907,135.36,135.32,8.08721697]
[1767630383806,59.93686682,135.38,135.33,0.69744437]
[1767630384009,0.87628907,135.38,135.33,0.69744437]
[1767630384229,0.67628907,135.37,135.33,0.69744437]
[1767630384701,0.2,135.38,135.33,0.69744437]
[1767630386004,0.2,135.38,135.34,8.08624295]
[1767630386928,0.87628907,135.38,135.34,8.08624295]
[1767630388324,0.87628907,135.38,135.35,0.69744437]
[1767630389825,0.2,135.38,135.36,0.69744437]
[1767630390028,0.2,135.38,135.35,8.0855768]
[1767630390606,0.14,135.38,135.36,0.69744437]
[1767630391306,0.14,135.38,135.35,7.38813243]
[1767630391307,0.2,135.39,135.37,0.66452757]
[1767630391625,0.2,135.4,135.37,0.66452757]
[1767630391828,0.2,135.4,135.37,8.05164006]
[1767630392029,0.2,135.4,135.37,0.66452757]
[1767630392602,0.2,135.4,135.31,42.46613116]
[1767630392603,0.65127317,135.39,135.34,0.66452757]
[1767630393523,0.65127317,135.39,135.34,8.05313203]
[1767630394430,8.03745337,135.39,135.34,8.05313203]
[1767630396924,0.2,135.4,135.34,0.66452757]
[1767630396925,7.8721015,135.38,135.34,0.66452757]
[1767630397321,0.64961452,135.37,135.32,8.05417932]
[1767630397504,0.64961452,135.37,135.32,0.66452757]
[1767630397710,0.64798888,135.35,135.31,21.5146946]
[1767630397924,0.58798889,135.35,135.31,21.5146946]
[1767630398134,0.5279889,135.35,135.31,21.5146946]
[1767630398442,2.4204603,135.37,135.32,0.66452757]
[1767630398649,2.4204603,135.37,135.32,8.05418542]
[1767630399013,9.80767775,135.37,135.32,8.05418542]
[1767630399213,2.4204603,135.37,135.32,8.05418542]
[1767630399424,2.4204603,135.37,135.33,0.66452757]
[1767630399714,2.36046031,135.37,135.33,0.66452757]
[1767630400029,3.0134258,135.37,135.33,0.66452757]
[1767630400229,0.65296549,135.37,135.33,0.66452757]
[1767630400533,2.4204603,135.38,135.33,0.66452757]
[1767630400915,2.4204603,135.36,135.33,0.66452757]
[1767630401116,2.4204603,135.36,135.33,8.05382649]
[1767630401522,0.65008517,135.37,135.33,8.05382649]
[1767630401837,2.4204603,135.36,135.33,8.05382649]
[1767630402637,0.65008517,135.37,135.33,8.05382649]
[1767630402937,2.4204603,135.37,135.34,0.66452757]
[1767630403119,2.4204603,135.37,135.34,8.05283182]
[1767630403517,2.4204603,135.38,135.35,0.66452757]
[1767630403704,0.2,135.4,135.35,0.66452757]
[1767630404118,2.6204603,135.4,135.35,0.66452757]
[1767630404839,2.4204603,135.39,135.35,0.66452757]
[1767630405209,2.4204603,135.39,135.36,7.38770685]
[1767630405419,2.4204603,135.39,135.36,8.05223442]
[1767630406339,2.4204603,135.39,135.34,31.93199645]
[1767630406340,2.4204603,135.38,135.35,8.05251379]
[1767630406536,0.5677848,135.4,135.36,0.66452757]
[1767630406741,2.4204603,135.39,135.36,0.66452757]
[1767630407211,0.2,135.4,135.37,7.38716111]
[1767630407412,2.6204603,135.4,135.37,8.05168868]
[1767630407641,0.2,135.4,135.37,8.05168868]
[1767630408544,2.6204603,135.4,135.37,8.05168868]
[1767630409450,2.4204603,135.44,135.4,0.66452757]
[1767630409744,3.07342579,135.45,135.4,0.66452757]
[1767630409948,0.2,135.46,135.4,0.66452757]
[1767630410522,2.6204603,135.46,135.4,0.66452757]
[1767630411032,0.2,135.46,135.4,0.66452757]
[1767630411217,2.6204603,135.47,135.44,0.66452757]
[1767630411836,0.2,135.47,135.44,8.04785478]
[1767630412048,2.6204603,135.47,135.44,8.04785478]
[1767630412844,0.2,135.47,135.45,0.65719495]
[1767630413048,0.70763705,135.51,135.45,0.65719495]
[1767630413347,2.4204603,135.5,135.45,0.65719495]
[1767630414251,2.73126874,135.5,135.45,0.65719495]
[1767630414451,0.31080844,135.5,135.46,0.65719495]
[1767630414753,0.31473704,135.49,135.41,19.11929734]
[1767630414929,2.4204603,135.47,135.42,0.65719495]
[1767630415124,0.70763705,135.48,135.42,0.65719495]
[1767630415330,0.70763705,135.48,135.43,8.04074936]
[1767630415527,0.31080844,135.47,135.44,7.3832446]
[1767630415840,3.12809735,135.49,135.45,8.03988629]
[1767630416149,0.70763705,135.49,135.45,8.03988629]
[1767630416351,10.50893985,135.49,135.45,0.65719495]
[1767630416651,2.4204603,135.48,135.45,0.65719495]
[1767630417848,2.4204603,135.48,135.43,8.04086556]
[1767630418034,2.4204603,135.48,135.44,0.65719495]
[1767630418556,2.73126874,135.48,135.44,0.65719495]
[1767630419452,2.4204603,135.48,135.44,8.04044367]
[1767630420661,2.73519734,135.47,135.42,0.65719495]
[1767630420958,2.73519734,135.47,135.42,8.04131809]
[1767630421935,0.31473704,135.47,135.43,7.38381597]
[1767630422261,2.73519734,135.47,135.42,8.04138488]
[1767630422431,3.08898294,135.46,135.42,0.65719495]
[1767630422635,3.08898294,135.46,135.42,8.04147123]
[1767630423042,0.66852264,135.46,135.42,8.04147123]
[1767630424162,52.02323548,135.49,135.43,0.65778725]
[1767630424469,51.67370378,135.49,135.43,0.65778725]
[1767630424637,0.66852264,135.51,135.45,0.65778725]
[1767630424962,10.46862698,135.51,135.45,0.65778725]
[1767630425854,14.12852264,135.53,135.45,0.65778725]
[1767630426032,2.769992,135.52,135.45,0.65778725]
[1767630426233,0.3495317,135.54,135.45,0.65778725]
[1767630426556,0.3495317,135.54,135.47,0.65778725]
[1767630426759,7.72744561,135.54,135.49,0.65778725]
[1767630426963,0.3495317,135.54,135.49,0.65778725]
[1767630427965,0.3495317,135.54,135.5,8.03786105]
[1767630428349,7.72750062,135.54,135.5,0.65778725]
[1767630428546,0.3495317,135.54,135.5,0.65778725]
[1767630428863,2.769992,135.55,135.5,0.65778725]
[1767630429738,7.72697214,135.55,135.5,8.03771455]
[1767630429941,2.769992,135.55,135.51,0.65778725]
[1767630430238,0.3495317,135.55,135.51,0.65778725]
[1767630430653,0.3495317,135.55,135.5,7.3799273]
[1767630430654,10.147508,135.55,135.5,7.3799273]
[1767630430949,10.147508,135.55,135.5,8.03771455]
[1767630431150,3.08579303,135.54,135.5,0.65778725]
[1767630432058,0.35268971,135.53,135.49,0.65778725]
[1767630432264,2.77624518,135.51,135.47,0.65778725]
[1767630432954,0.65914208,135.5,135.46,8.03978874]
[1767630433352,0.65914208,135.5,135.47,7.38165229]
[1767630433867,0.66852264,135.51,135.47,8.03943954]
[1767630434863,3.08898294,135.51,135.47,8.03943954]
[1767630435553,0.66533273,135.49,135.46,7.38201849]
[1767630435746,3.08898294,135.5,135.45,0.65778725]
[1767630435947,3.08898294,135.5,135.44,13.46]
[1767630435948,7.72863605,135.52,135.47,0.65778725]
[1767630436263,0.66533273,135.51,135.46,8.04001064]
[1767630436443,0.66533273,135.51,135.46,7.38222339]
[1767630436644,3.08579303,135.51,135.46,8.04001064]
[1767630436863,70.1178592,135.55,135.47,0.65778725]
[1767630437047,2.769992,135.53,135.47,0.65778725]
[1767630438051,2.769992,135.53,135.48,7.38116327]
[1767630438335,0.3495317,135.53,135.49,0.65778725]
[1767630438539,62.14023009,135.55,135.49,0.65778725]
[1767630438759,0.3495317,135.54,135.49,0.65778725]
[1767630439642,0.3495317,135.54,135.5,7.3800738]
[1767630441366,0.3495317,135.54,135.5,0.65778725]
[1767630441676,0.35268971,135.52,135.48,14.11778725]
[1767630441850,0.35268971,135.52,135.48,21.49891725]
[1767630443179,0.6622063,135.51,135.47,7.38153566]
[1767630443546,11.81944162,135.52,135.47,8.03932291]
[1767630443953,11.81944162,135.52,135.48,0.65778725]
[1767630444171,4.44038954,135.52,135.48,8.03894743]
[1767630444372,11.81938248,135.52,135.48,0.65778725]
[1767630445854,0.3495317,135.51,135.46,8.03983134]
[1767630446673,0.3495317,135.51,135.47,0.65778725]
[1767630446866,0.3495317,135.51,135.47,8.03940755]
[1767630448150,11.50102234,135.51,135.47,0.65778725]
[1767630448561,4.1213986,135.51,135.47,8.03941662]
[1767630448764,11.50104316,135.51,135.47,0.65778725]
[1767630449075,0.66533273,135.5,135.47,0.65778725]
[1767630449453,11.15151146,135.51,135.43,26.80906012]
[1767630449454,0.35578488,135.47,135.43,7.38361144]
[1767630449665,4.12765178,135.47,135.43,8.04139869]
[1767630449967,0.35578488,135.47,135.43,8.04139869]
[1767630452971,0.65914208,135.46,135.42,21.53687815]
[1767630453356,4.09302622,135.47,135.43,8.07652077]
[1767630453979,11.47474609,135.47,135.43,0.69265467]
[1767630454186,0.68973599,135.44,135.4,0.69265467]
[1767630454385,4.46160289,135.44,135.4,8.07808721]
[1767630455086,7.38247097,135.46,135.41,0.69265467]
[1767630455383,59.05502003,135.48,135.42,0.69265467]
[1767630455587,62.82688693,135.48,135.42,0.69265467]
[1767630455797,59.75220164,135.48,135.42,0.69265467]
[1767630455960,4.09302622,135.47,135.42,0.69265467]
[1767630456159,4.09302622,135.47,135.4,25.84924347]
[1767630456160,0.68973599,135.44,135.4,8.07808721]
[1767630458496,0.69718161,135.45,135.41,8.07734708]
[1767630458791,0.32115932,135.46,135.42,0.69265467]
[1767630459372,0.69342139,135.45,135.41,8.07734708]
[1767630460793,0.69342139,135.45,135.41,8.07760129]
[1767630461704,0.6334214,135.45,135.41,8.07760129]
[1767630462605,20.84185195,135.47,135.42,0.69265467]
[1767630462606,24.61371885,135.47,135.42,0.69265467]
[1767630463297,20.84185195,135.47,135.42,0.69265467]
[1767630463708,20.84185195,135.47,135.42,8.07687004]
[1767630463897,21.10361128,135.47,135.43,0.69265467]
[1767630464098,24.87547818,135.47,135.43,0.69265467]
[1767630466396,13.72175933,135.47,135.43,8.07652739]
[1767630466695,13.72175933,135.47,135.41,14.15265467]
[1767630466696,0.26607001,135.45,135.41,14.15265467]
[1767630467282,0.26607001,135.45,135.41,21.53741491]
[1767630467491,4.03793691,135.45,135.41,21.53741491]
[1767630467784,3.7718669,135.45,135.42,0.69265467]
[1767630468001,11.85155652,135.46,135.42,0.69265467]
[1767630469287,8.07968962,135.46,135.42,0.69265467]
[1767630469586,11.85155652,135.46,135.42,0.69265467]
[1767630469805,0.26175933,135.45,135.41,13.46]
[1767630469993,0.69282739,135.44,135.4,8.07791947]
[1767630470300,4.46469429,135.44,135.4,0.69265467]
[1767630470488,0.69282739,135.44,135.4,8.0781509]
[1767630471101,0.69282739,135.44,135.41,0.69265467]
[1767630471298,0.69718161,135.45,135.41,0.69265467]
[1767630471698,11.15437491,135.46,135.41,0.69265467]
[1767630472079,11.85155652,135.46,135.41,0.69265467]
[1767630472597,26.53532227,135.46,135.41,0.69265467]
[1767630472839,26.53532227,135.46,135.39,36.67058713]
[1767630472840,4.03793691,135.42,135.39,36.67058713]
[1767630473107,4.42785981,135.41,135.39,36.67058713]
[1767630474406,7.38466498,135.42,135.39,36.67058713]
[1767630474602,3.7718669,135.41,135.39,36.67058713]
[1767630474781,7.68720112,135.42,135.39,36.67058713]
[1767630475103,4.07790226,135.4,135.36,0.66492104]
[1767630475286,0.30603536,135.4,135.36,0.66492104]
[1767630475596,4.07790226,135.4,135.36,0.66492104]
[1767630475776,4.01790227,135.4,135.36,0.66492104]
[1767630476179,11.40374128,135.4,135.36,0.66492104]
[1767630476586,11.40374128,135.4,135.35,0.66492104]
[1767630476587,3.7718669,135.39,135.35,0.66492104]
[1767630476787,7.38583901,135.4,135.35,0.66492104]
[1767630477001,3.7718669,135.39,135.35,0.66492104]
[1767630477207,3.7718669,135.38,135.35,0.66492104]
[1767630478699,3.7718669,135.37,135.34,14.12492104]
[1767630478896,4.42373125,135.38,135.34,21.51367059]
[1767630479100,4.42373125,135.38,135.34,14.12492104]
[1767630480094,3.7718669,135.38,135.35,0.7007758]
[1767630480707,7.38618404,135.39,135.35,0.7007758]
[1767630480708,3.7718669,135.37,135.35,0.7007758]
[1767630480910,3.71186691,135.37,135.35,0.7007758]
[1767630481386,7.59171262,135.39,135.35,0.7007758]
[1767630481711,3.7718669,135.38,135.35,0.7007758]
[1767630482710,4.00111598,135.37,135.34,14.1461723]
[1767630482899,7.38695315,135.38,135.34,14.1461723]
[1767630483100,3.7718669,135.37,135.34,14.1461723]
[1767630483489,3.7718669,135.38,135.35,0.6861723]
[1767630483809,55.44557068,135.4,135.35,0.6861723]
[1767630483987,62.8311094,135.4,135.35,0.6861723]
[1767630484189,3.7718669,135.39,135.35,0.6861723]
[1767630484810,3.7718669,135.39,135.36,0.6861723]
[1767630486498,8.05177839,135.39,135.35,0.6861723]
[1767630486807,3.7718669,135.38,135.35,0.6861723]
[1767630487009,59.28872396,135.4,135.35,0.6861723]
[1767630487209,51.67370378,135.4,135.36,0.6861723]
[1767630488617,62.83123607,135.4,135.36,0.6861723]
[1767630489592,3.7718669,135.39,135.36,0.6861723]
[1767630489992,11.15753229,135.4,135.36,0.6861723]
[1767630490716,7.38566539,135.4,135.36,0.6861723]
[1767630491018,11.15753229,135.4,135.36,0.6861723]
[1767630491186,18.69222507,135.41,135.36,0.6861723]
[1767630491187,11.15814335,135.39,135.36,0.6861723]
[1767630491387,3.7718669,135.38,135.35,0.6861723]
[1767630491590,4.43315945,135.38,135.35,0.6861723]
[1767630492017,3.7718669,135.37,135.35,0.6861723]
[1767630492190,3.7718669,135.36,135.33,0.8861723]
[1767630492394,3.65186692,135.36,135.33,0.8861723]
[1767630492634,4.00975641,135.37,135.33,0.8861723]
[1767630493007,3.7718669,135.36,135.33,0.8861723]
[1767630493209,11.15970723,135.36,135.33,0.8861723]
[1767630493699,3.7718669,135.36,135.33,0.8861723]
[1767630493897,11.15960656,135.36,135.33,0.8861723]
[1767630494401,0.2420812,135.35,135.33,0.2]
[1767630494823,11.82962682,135.36,135.33,0.2]
[1767630496122,3.7718669,135.38,135.34,0.6861723]
[1767630496321,7.61604964,135.38,135.34,0.6861723]
[1767630496524,3.7718669,135.39,135.34,0.6861723]
[1767630496525,11.82811112,135.39,135.34,0.6861723]
[1767630497101,4.00111598,135.38,135.34,0.6861723]
[1767630497408,11.38781018,135.38,135.34,0.6861723]
[1767630499230,0.23361271,135.36,135.33,0.2]
[1767630499421,11.3887424,135.37,135.33,0.8861723]
[1767630499607,3.7718669,135.36,135.33,0.8861723]
[1767630499928,3.7718669,135.35,135.31,0.6861723]
[1767630500929,3.8708669,135.35,135.31,0.6861723]
[1767630501310,11.25947702,135.35,135.31,0.6861723]
[1767630502228,0.59655914,135.34,135.29,13.66]
[1767630502414,0.099,135.34,135.29,14.3461723]
[1767630502616,3.01840978,135.33,135.29,13.66]
[1767630502821,3.01840978,135.33,135.29,0.2]
[1767630503617,7.38989062,135.32,135.29,0.2]
[1767630504811,9.91074126,135.32,135.29,0.2]
[1767630507524,2.42185064,135.32,135.29,0.8861723]
[1767630508138,9.91037318,135.33,135.29,0.8861723]
[1767630508715,10.41240008,135.34,135.3,0.6861723]
[1767630510841,9.81081509,135.34,135.3,0.6861723]
[1767630511226,2.42185064,135.33,135.3,0.6861723]
[1767630511942,9.81119549,135.33,135.3,0.6861723]
[1767630512138,7.38934485,135.33,135.3,0.6861723]
[1767630512323,9.8108259,135.34,135.3,0.6861723]
[1767630512639,2.42185064,135.34,135.3,0.6861723]
[1767630512846,7.48742426,135.35,135.3,0.6861723]
[1767630513018,9.9092749,135.35,135.3,0.6861723]
[1767630513637,9.9092749,135.35,135.31,0.68742016]
[1767630513955,2.42185064,135.36,135.32,0.68742016]
[1767630514176,59.66265283,135.37,135.32,0.68742016]
[1767630514323,2.42185064,135.36,135.32,0.68742016]
[1767630514523,59.66265283,135.37,135.32,0.68742016]
[1767630514847,62.08450347,135.37,135.32,0.68742016]
[1767630515048,62.08450347,135.37,135.33,0.68742016]
[1767630515245,61.48291848,135.37,135.33,0.68742016]
[1767630516042,7.38691045,135.38,135.33,0.68742016]
[1767630516421,3.02343563,135.39,135.33,0.68742016]
[1767630516422,10.40963703,135.39,135.33,0.68742016]
[1767630516628,7.98778639,135.39,135.33,0.68742016]
[1767630517230,7.98778639,135.39,135.35,0.68742016]
[1767630517632,7.3862014,135.39,135.35,0.68742016]
[1767630520760,2.42185064,135.39,135.36,0.68742016]
[1767630521054,10.4090949,135.4,135.36,0.68742016]
[1767630522051,9.80750991,135.4,135.36,0.68742016]
[1767630522636,9.90650991,135.4,135.36,0.68742016]
[1767630523250,7.48465927,135.4,135.36,0.65742016]
[1767630523442,9.90650991,135.4,135.36,0.62742016]
[1767630523841,7.48465927,135.4,135.36,0.62742016]
[1767630524149,2.42185064,135.39,135.36,0.62742016]
[1767630524735,2.38356048,135.39,135.36,0.62742016]
[1767630525951,0.099,135.36,135.33,7.38909037]
[1767630526155,2.42185064,135.37,135.33,7.38909037]
[1767630526334,2.42185064,135.37,135.33,0.68742016]
[1767630526734,2.42185064,135.37,135.33,8.07667309]
[1767630526966,2.42185064,135.37,135.34,0.68742016]
[1767630527550,2.42185064,135.37,135.32,7.38963899]
[1767630527755,2.42185064,135.38,135.32,7.38963899]
[1767630527958,2.42185064,135.38,135.32,0.68742016]
[1767630528161,0.099,135.37,135.32,0.68742016]
[1767630528835,2.87880978,135.38,135.32,0.68742016]
[1767630529740,10.26573662,135.38,135.32,8.07681108]
[1767630529938,10.26573662,135.38,135.33,0.68742016]
[1767630530538,10.26573662,135.38,135.33,0.62100617]
[1767630530960,0.16764272,135.35,135.3,20.8508199]
[1767630531151,2.58949336,135.35,135.3,20.8508199]
[1767630531353,2.42185064,135.34,135.29,7.59133853]
[1767630531745,0.4511731,135.34,135.29,7.59133853]
[1767630531950,10.26198505,135.34,135.29,7.59133853]
[1767630532553,10.26198505,135.34,135.3,0.68742016]
[1767630533457,0.44836615,135.32,135.29,0.2]
[1767630533649,2.42185064,135.33,135.29,0.85617936]
[1767630533650,0.52337313,135.33,135.29,0.85617936]
[1767630533854,7.38936909,135.33,135.29,0.85617936]
[1767630534038,0.51912939,135.32,135.29,0.2]
[1767630536847,7.91274222,135.33,135.29,0.85617936]
[1767630537270,0.099,135.32,135.29,0.2]
[1767630537453,2.52085064,135.32,135.29,0.2]
[1767630538556,2.42185064,135.31,135.29,0.2]
[1767630540063,2.52085064,135.32,135.29,0.2]
[1767630540384,2.42185064,135.33,135.3,0.65617936]
[1767630540562,62.00797395,135.34,135.3,0.65617936]
[1767630540960,2.42185064,135.33,135.3,0.65617936]
[1767630541476,59.58612331,135.34,135.3,0.65617936]
[1767630541848,2.42185064,135.33,135.3,0.65617936]
[1767630543172,54.09555442,135.34,135.31,0.68497489]
[1767630543549,23.26978796,135.36,135.31,0.68497489]
[1767630543959,23.26978796,135.36,135.32,0.68497489]
[1767630544259,9.80921013,135.37,135.32,0.68497489]
[1767630544665,10.33203702,135.38,135.32,0.68497489]
[1767630544868,2.42185064,135.38,135.32,0.68497489]
[1767630545165,73.04339237,135.39,135.32,0.68497489]
[1767630545373,2.42185064,135.38,135.32,0.68497489]
[1767630545752,15.88185064,135.39,135.32,0.68497489]
[1767630545957,7.38569268,135.4,135.34,0.68497489]
[1767630546157,10.33040804,135.41,135.34,0.68497489]
[1767630546979,2.42185064,135.4,135.34,0.68497489]
[1767630548077,9.80747564,135.4,135.36,0.68497489]
[1767630548457,2.42185064,135.39,135.36,0.68497489]
[1767630548869,2.25354883,135.39,135.36,0.68497489]
[1767630550365,9.63961927,135.39,135.36,0.68497489]
[1767630552979,7.48478473,135.4,135.36,0.68497489]
[1767630553169,9.90663537,135.4,135.36,0.68497489]
[1767630553362,9.85413863,135.4,135.36,0.68497489]
[1767630556358,0.04650326,135.4,135.36,0.68497489]
[1767630556680,2.4683539,135.4,135.36,8.07252529]
[1767630556886,2.4683539,135.4,135.36,0.68497489]
[1767630557473,2.42185064,135.39,135.36,0.68497489]
[1767630559171,0.66818299,135.43,135.39,0.68497489]
[1767630559377,52.15370376,135.47,135.39,0.65497489]
[1767630559378,0.66818299,135.44,135.39,0.65497489]
[1767630559773,0.65111646,135.43,135.39,0.65497489]
[1767630560675,0.65111646,135.43,135.39,8.04103026]
[1767630560970,0.54566796,135.43,135.39,8.04103026]
[1767630561368,9.80470388,135.45,135.4,0.68497489]
[1767630562592,9.80470388,135.45,135.4,8.07047643]
[1767630562811,2.42185064,135.44,135.4,0.68497489]
[1767630562973,2.96857309,135.44,135.4,0.68497489]
[1767630563601,0.54672245,135.44,135.4,0.68497489]
[1767630565298,0.54672245,135.44,135.39,7.38582515]
[1767630565472,0.54672245,135.44,135.4,0.68497489]
[1767630565671,0.66696838,135.43,135.4,0.68497489]
[1767630565875,4.44439737,135.43,135.39,0.68497489]
[1767630566092,0.66696838,135.43,135.39,0.68497489]
[1767630569008,4.44439737,135.43,135.38,0.68497489]
[1767630569307,0.66577795,135.41,135.37,0.68497489]
[1767630569483,4.44320694,135.41,135.37,0.68497489]
[1767630569799,4.32653243,135.4,135.36,0.68497489]